[Event "Early-Titled-Tuesday-Blitz-March-19-2024"]
[Site "Chess.com"]
[Date "2024.03.19"]
[Round "9"]
[White "AlexPapasimakopoulos"]
[Black "alexrustemov"]
[Result "1/2-1/2"]
[WhiteElo "2762"]
[BlackElo "2872"]
[TimeControl "180+1"]
[EndTime "9:45:46 PDT"]
[Termination "Game drawn by stalemate"]

1. d4 {[%clk 0:02:48.5]} 1... d5 {[%clk 0:02:59.8]} 2. c4 {[%clk 0:02:47.4]}
2... dxc4 {[%clk 0:02:59.2]} 3. Nf3 {[%clk 0:02:46]} 3... Nf6 {[%clk 0:02:59]}
4. e3 {[%clk 0:02:46.5]} 4... e6 {[%clk 0:02:59.2]} 5. Bxc4 {[%clk 0:02:47.1]}
5... c5 {[%clk 0:02:59.5]} 6. O-O {[%clk 0:02:47.7]} 6... a6 {[%clk 0:02:58.8]}
7. Bd3 {[%clk 0:02:47.3]} 7... Nbd7 {[%clk 0:02:57.4]} 8. Nc3 {[%clk 0:02:47.5]}
8... b6 {[%clk 0:02:57.3]} 9. Re1 {[%clk 0:02:47.7]} 9... Bb7 {[%clk 0:02:57.5]}
10. a3 {[%clk 0:02:47.5]} 10... Qb8 {[%clk 0:02:56.9]} 11. Rb1 {[%clk
0:02:44.3]} 11... Bd6 {[%clk 0:02:56.2]} 12. h3 {[%clk 0:02:43.5]} 12... O-O
{[%clk 0:02:55.8]} 13. b4 {[%clk 0:02:43.4]} 13... cxd4 {[%clk 0:02:50.8]} 14.
Nxd4 {[%clk 0:02:41.4]} 14... Rd8 {[%clk 0:02:43.5]} 15. Bb2 {[%clk 0:02:39.3]}
15... Ne5 {[%clk 0:02:42]} 16. Bf1 {[%clk 0:02:39.3]} 16... Ne4 {[%clk
0:02:21.6]} 17. Rc1 {[%clk 0:02:36]} 17... Nxc3 {[%clk 0:02:19.9]} 18. Rxc3
{[%clk 0:02:35.1]} 18... b5 {[%clk 0:02:07.9]} 19. Qh5 {[%clk 0:02:33.4]} 19...
Bd5 {[%clk 0:02:02.4]} 20. Rc2 {[%clk 0:02:22.5]} 20... Qb7 {[%clk 0:01:54.2]}
21. Rec1 {[%clk 0:02:01]} 21... Rac8 {[%clk 0:01:52.7]} 22. Rxc8 {[%clk
0:01:59.9]} 22... Rxc8 {[%clk 0:01:52.8]} 23. Rxc8+ {[%clk 0:02:00]} 23... Qxc8
{[%clk 0:01:53.5]} 24. Nxb5 {[%clk 0:01:49.9]} 24... axb5 {[%clk 0:01:37.2]} 25.
Bxe5 {[%clk 0:01:49.6]} 25... g6 {[%clk 0:01:23.5]} 26. Qg5 {[%clk 0:01:48.5]}
26... h6 {[%clk 0:01:19.9]} 27. Qf6 {[%clk 0:01:41.5]} 27... Bxe5 {[%clk
0:01:20.2]} 28. Qxe5 {[%clk 0:01:42.4]} 28... Qc1 {[%clk 0:01:20.1]} 29. Qb8+
{[%clk 0:01:29.3]} 29... Kg7 {[%clk 0:01:20]} 30. Qe5+ {[%clk 0:01:28.2]} 30...
Kh7 {[%clk 0:01:03.6]} 31. Qf6 {[%clk 0:01:27.6]} 31... e5 {[%clk 0:00:57.9]}
32. f4 {[%clk 0:01:17.9]} 32... Qxe3+ {[%clk 0:00:47.6]} 33. Kh2 {[%clk
0:01:14.7]} 33... exf4 {[%clk 0:00:47.7]} 34. Qb2 {[%clk 0:01:05.7]} 34... Qg3+
{[%clk 0:00:30.5]} 35. Kg1 {[%clk 0:01:05.5]} 35... f3 {[%clk 0:00:31]} 36. Qf2
{[%clk 0:01:04.9]} 36... Qg5 {[%clk 0:00:30.1]} 37. g3 {[%clk 0:00:56.1]} 37...
Qc1 {[%clk 0:00:26.8]} 38. Kh2 {[%clk 0:00:53.1]} 38... Qxa3 {[%clk 0:00:26.1]}
39. Bxb5 {[%clk 0:00:46.8]} 39... Qxb4 {[%clk 0:00:25.9]} 40. Bd3 {[%clk
0:00:45.9]} 40... Qc3 {[%clk 0:00:24.6]} 41. Bb5 {[%clk 0:00:43]} 41... Qe5
{[%clk 0:00:23.7]} 42. h4 {[%clk 0:00:41.8]} 42... Kg7 {[%clk 0:00:23]} 43. Bd3
{[%clk 0:00:41.5]} 43... g5 {[%clk 0:00:17.7]} 44. hxg5 {[%clk 0:00:41.4]} 44...
hxg5 {[%clk 0:00:18.3]} 45. Ba6 {[%clk 0:00:40.8]} 45... Be4 {[%clk 0:00:17.6]}
46. Bc4 {[%clk 0:00:40.4]} 46... Kg6 {[%clk 0:00:17.3]} 47. Ba6 {[%clk 0:00:39]}
47... f6 {[%clk 0:00:17.4]} 48. Bf1 {[%clk 0:00:38.8]} 48... f5 {[%clk
0:00:13.4]} 49. Qb6+ {[%clk 0:00:38.4]} 49... Qf6 {[%clk 0:00:13.8]} 50. Qb8
{[%clk 0:00:29.3]} 50... f4 {[%clk 0:00:12.6]} 51. gxf4 {[%clk 0:00:24.5]} 51...
Qxf4+ {[%clk 0:00:09.6]} 52. Qxf4 {[%clk 0:00:24]} 52... gxf4 {[%clk 0:00:10.5]}
53. Kg1 {[%clk 0:00:24.5]} 53... Kf5 {[%clk 0:00:10.6]} 54. Kf2 {[%clk
0:00:25.2]} 54... Ke5 {[%clk 0:00:10.6]} 55. Ba6 {[%clk 0:00:25.5]} 55... Bd5
{[%clk 0:00:10.3]} 56. Bb5 {[%clk 0:00:25.8]} 56... Kd4 {[%clk 0:00:10.4]} 57.
Ba6 {[%clk 0:00:26.3]} 57... Ke5 {[%clk 0:00:08.3]} 58. Bc8 {[%clk 0:00:26.1]}
58... Be4 {[%clk 0:00:07.4]} 59. Bg4 {[%clk 0:00:26.5]} 59... Kf6 {[%clk
0:00:07.1]} 60. Bxf3 {[%clk 0:00:26.5]} 60... Bxf3 {[%clk 0:00:06.9]} 61. Kxf3
{[%clk 0:00:27.4]} 61... Kf5 {[%clk 0:00:07.4]} 62. Kf2 {[%clk 0:00:28.1]} 62...
Ke4 {[%clk 0:00:07.9]} 63. Ke2 {[%clk 0:00:28.6]} 63... f3+ {[%clk 0:00:08.3]}
64. Kf2 {[%clk 0:00:29.3]} 64... Kf4 {[%clk 0:00:09.1]} 65. Kf1 {[%clk 0:00:30]}
65... Ke3 {[%clk 0:00:09.4]} 66. Ke1 {[%clk 0:00:30.1]} 66... f2+ {[%clk
0:00:10.1]} 67. Kf1 {[%clk 0:00:30.7]} 67... Kf3 {[%clk 0:00:10.9]} 1/2-1/2

[Event "Early-Titled-Tuesday-Blitz-March-19-2024"]
[Site "Chess.com"]
[Date "2024.03.19"]
[Round "9"]
[White "lamomiajunior"]
[Black "Flawless_Fighter"]
[Result "1-0"]
[WhiteElo "2757"]
[BlackElo "2841"]
[TimeControl "180+1"]
[EndTime "9:45:51 PDT"]
[Termination "lamomiajunior won by checkmate"]

1. d4 {[%clk 0:03:00.9]} 1... Nf6 {[%clk 0:02:59.9]} 2. c4 {[%clk 0:03:01.5]}
2... e6 {[%clk 0:03:00.2]} 3. Nc3 {[%clk 0:03:02.1]} 3... d5 {[%clk 0:03:00.8]}
4. cxd5 {[%clk 0:03:02.2]} 4... Nxd5 {[%clk 0:03:01.7]} 5. e4 {[%clk 0:03:02.6]}
5... Nxc3 {[%clk 0:03:02.1]} 6. bxc3 {[%clk 0:03:03.5]} 6... c5 {[%clk
0:03:02.4]} 7. Rb1 {[%clk 0:03:04.2]} 7... Be7 {[%clk 0:03:02.6]} 8. Nf3 {[%clk
0:03:02.8]} 8... O-O {[%clk 0:03:02.1]} 9. Bd3 {[%clk 0:03:02.3]} 9... cxd4
{[%clk 0:03:01.4]} 10. cxd4 {[%clk 0:03:02.5]} 10... Nc6 {[%clk 0:03:01.9]} 11.
Bc4 {[%clk 0:02:53.7]} 11... Bb4+ {[%clk 0:02:42.3]} 12. Kf1 {[%clk 0:02:51.6]}
12... Qe7 {[%clk 0:02:36.7]} 13. Bg5 {[%clk 0:02:46.8]} 13... f6 {[%clk
0:02:32.5]} 14. Be3 {[%clk 0:02:47.2]} 14... Rd8 {[%clk 0:02:25]} 15. d5 {[%clk
0:02:45.4]} 15... Na5 {[%clk 0:02:22.8]} 16. Bd3 {[%clk 0:02:33.6]} 16... b6
{[%clk 0:01:56]} 17. h4 {[%clk 0:02:15.7]} 17... Bb7 {[%clk 0:01:46.7]} 18. h5
{[%clk 0:02:12.9]} 18... exd5 {[%clk 0:01:39.5]} 19. e5 {[%clk 0:02:13.2]} 19...
fxe5 {[%clk 0:01:19.5]} 20. Bg5 {[%clk 0:02:12]} 20... Qd6 {[%clk 0:01:13.5]}
21. Bxd8 {[%clk 0:02:10.5]} 21... Rxd8 {[%clk 0:01:14.4]} 22. Nxe5 {[%clk
0:02:10.2]} 22... Bc5 {[%clk 0:01:07.8]} 23. Qe2 {[%clk 0:01:57.4]} 23... Re8
{[%clk 0:00:57.1]} 24. f4 {[%clk 0:01:42.9]} 24... Qf6 {[%clk 0:00:49.8]} 25. g3
{[%clk 0:01:36]} 25... Bd6 {[%clk 0:00:42.2]} 26. Re1 {[%clk 0:01:32.3]} 26...
Rxe5 {[%clk 0:00:34.7]} 27. Qc2 {[%clk 0:01:26.8]} 27... Rxe1+ {[%clk
0:00:33.4]} 28. Kxe1 {[%clk 0:01:27.7]} 28... Qa1+ {[%clk 0:00:28.5]} 29. Qd1
{[%clk 0:01:27.1]} 29... Bb4+ {[%clk 0:00:28.1]} 30. Kf2 {[%clk 0:01:24.8]}
30... Qd4+ {[%clk 0:00:28.3]} 31. Kg2 {[%clk 0:01:24.5]} 31... Nc4 {[%clk
0:00:24.7]} 32. Bxh7+ {[%clk 0:01:24.3]} 32... Kxh7 {[%clk 0:00:21.8]} 33. Qxd4
{[%clk 0:01:25.2]} 33... Bc5 {[%clk 0:00:17.7]} 34. Qd3+ {[%clk 0:01:24.2]}
34... Kg8 {[%clk 0:00:18.1]} 35. Qf3 {[%clk 0:01:21.1]} 35... Nd6 {[%clk
0:00:14.9]} 36. Qb3 {[%clk 0:01:21.6]} 36... Kh7 {[%clk 0:00:13.3]} 37. Rd1
{[%clk 0:01:19.3]} 37... d4+ {[%clk 0:00:13.3]} 38. Kh2 {[%clk 0:01:18.7]} 38...
Be4 {[%clk 0:00:12.8]} 39. Qe6 {[%clk 0:01:17.8]} 39... Bf5 {[%clk 0:00:12]} 40.
Qd5 {[%clk 0:01:13]} 40... Be4 {[%clk 0:00:10.5]} 41. Qe6 {[%clk 0:01:08.6]}
41... Bf5 {[%clk 0:00:10.5]} 42. Qe2 {[%clk 0:01:08.9]} 42... Ne4 {[%clk
0:00:07.7]} 43. Qf3 {[%clk 0:00:54.3]} 43... Nf6 {[%clk 0:00:07.5]} 44. Re1
{[%clk 0:00:50.5]} 44... d3 {[%clk 0:00:06.2]} 45. Rd1 {[%clk 0:00:25.8]} 45...
Be4 {[%clk 0:00:06.6]} 46. Qf1 {[%clk 0:00:22.8]} 46... Ng4+ {[%clk 0:00:07.3]}
47. Kh3 {[%clk 0:00:22.8]} 47... Ne3 {[%clk 0:00:06.9]} 48. Qe1 {[%clk
0:00:20.4]} 48... Bf5+ {[%clk 0:00:02.5]} 49. Kh2 {[%clk 0:00:19.2]} 49... Nxd1
{[%clk 0:00:02.9]} 50. Qxd1 {[%clk 0:00:18.9]} 50... Be3 {[%clk 0:00:02.9]} 51.
g4 {[%clk 0:00:17.2]} 51... Bxf4+ {[%clk 0:00:02.3]} 52. Kg2 {[%clk 0:00:16.2]}
52... Be4+ {[%clk 0:00:03.2]} 53. Kf2 {[%clk 0:00:17.1]} 53... d2 {[%clk
0:00:03.3]} 54. Ke2 {[%clk 0:00:17.6]} 54... Bg5 {[%clk 0:00:02.4]} 55. Qa4
{[%clk 0:00:16.8]} 55... Bg2 {[%clk 0:00:01.8]} 56. Kf2 {[%clk 0:00:12.5]} 56...
Bh3 {[%clk 0:00:01.3]} 57. Qe4+ {[%clk 0:00:11.9]} 57... Kh6 {[%clk 0:00:01.3]}
58. Qg6# {[%clk 0:00:12]} 1-0

[Event "Early-Titled-Tuesday-Blitz-March-19-2024"]
[Site "Chess.com"]
[Date "2024.03.19"]
[Round "9"]
[White "jk13"]
[Black "amanjazu"]
[Result "1-0"]
[WhiteElo "2693"]
[BlackElo "2556"]
[TimeControl "180+1"]
[EndTime "9:45:52 PDT"]
[Termination "jk13 won by resignation"]

1. e4 {[%clk 0:03:00.9]} 1... Nf6 {[%clk 0:02:59.8]} 2. e5 {[%clk 0:03:00.8]}
2... Nd5 {[%clk 0:02:59.3]} 3. d4 {[%clk 0:03:01.7]} 3... d6 {[%clk 0:02:59]} 4.
Nf3 {[%clk 0:03:02.6]} 4... g6 {[%clk 0:02:58.5]} 5. Bc4 {[%clk 0:03:02.4]} 5...
Nb6 {[%clk 0:02:58.7]} 6. Bb3 {[%clk 0:03:03]} 6... Bg7 {[%clk 0:02:59.3]} 7.
Qe2 {[%clk 0:03:03.3]} 7... O-O {[%clk 0:02:59.2]} 8. h3 {[%clk 0:03:03.9]} 8...
Nc6 {[%clk 0:02:58.6]} 9. O-O {[%clk 0:03:04.2]} 9... a5 {[%clk 0:02:57.6]} 10.
a4 {[%clk 0:03:03]} 10... dxe5 {[%clk 0:02:48.8]} 11. dxe5 {[%clk 0:03:03.9]}
11... Nd4 {[%clk 0:02:49.3]} 12. Nxd4 {[%clk 0:03:04.2]} 12... Qxd4 {[%clk
0:02:50.2]} 13. Re1 {[%clk 0:03:03.6]} 13... Be6 {[%clk 0:02:43.8]} 14. Nd2
{[%clk 0:02:52.7]} 14... Rad8 {[%clk 0:02:21.3]} 15. Nf3 {[%clk 0:02:45.3]}
15... Qc5 {[%clk 0:02:19.9]} 16. Be3 {[%clk 0:02:42.4]} 16... Qc6 {[%clk
0:02:14.7]} 17. Nd4 {[%clk 0:02:35.2]} 17... Qd7 {[%clk 0:02:14.4]} 18. Nxe6
{[%clk 0:02:29.6]} 18... fxe6 {[%clk 0:02:15.3]} 19. Qb5 {[%clk 0:02:04.4]}
19... Nd5 {[%clk 0:02:08.9]} 20. Qxb7 {[%clk 0:01:31.9]} 20... Bxe5 {[%clk
0:02:02.1]} 21. Bh6 {[%clk 0:01:29]} 21... Bg7 {[%clk 0:02:01.6]} 22. Bxg7
{[%clk 0:01:29.2]} 22... Kxg7 {[%clk 0:02:02.5]} 23. Qa6 {[%clk 0:01:28]} 23...
Rf6 {[%clk 0:01:52.6]} 24. Qxa5 {[%clk 0:01:25.9]} 24... Rdf8 {[%clk 0:01:52.6]}
25. f3 {[%clk 0:01:17.5]} 25... Nf4 {[%clk 0:01:45.8]} 26. Qe5 {[%clk
0:01:10.1]} 26... Kh6 {[%clk 0:01:43.6]} 27. Rad1 {[%clk 0:01:03.8]} 27... Qe8
{[%clk 0:01:33.3]} 28. Qe3 {[%clk 0:00:38.6]} 28... g5 {[%clk 0:01:30.4]} 29.
Rd4 {[%clk 0:00:33.8]} 29... Qh5 {[%clk 0:01:28.6]} 30. Re4 {[%clk 0:00:22]}
30... Qh4 {[%clk 0:00:41.1]} 31. Rxf4 {[%clk 0:00:16.8]} 31... gxf4 {[%clk
0:00:35.9]} 32. Qf2 {[%clk 0:00:17.3]} 32... Qg3 {[%clk 0:00:26.7]} 33. Bxe6
{[%clk 0:00:15]} 33... Rd8 {[%clk 0:00:26]} 34. Bb3 {[%clk 0:00:14]} 34... Rfd6
{[%clk 0:00:20.1]} 35. Qxg3 {[%clk 0:00:06.3]} 35... fxg3 {[%clk 0:00:21]} 36.
Bc4 {[%clk 0:00:05.6]} 36... Rd1 {[%clk 0:00:20.4]} 37. Kf1 {[%clk 0:00:05.9]}
37... Kg5 {[%clk 0:00:19.9]} 38. Bd3 {[%clk 0:00:06.2]} 38... Rxe1+ {[%clk
0:00:19.2]} 39. Kxe1 {[%clk 0:00:06.6]} 39... h5 {[%clk 0:00:18.9]} 40. b4
{[%clk 0:00:06.3]} 40... Kf4 {[%clk 0:00:19]} 41. Kd2 {[%clk 0:00:06.1]} 41...
e5 {[%clk 0:00:18.8]} 42. a5 {[%clk 0:00:05.4]} 42... Rb8 {[%clk 0:00:14.1]} 43.
b5 {[%clk 0:00:05.6]} 43... Ra8 {[%clk 0:00:13.5]} 44. a6 {[%clk 0:00:05.7]}
44... Ra7 {[%clk 0:00:09]} 45. Be4 {[%clk 0:00:05.6]} 45... Kg5 {[%clk 0:00:08]}
46. Bb7 {[%clk 0:00:04.9]} 46... Kf6 {[%clk 0:00:08.2]} 47. c4 {[%clk
0:00:05.3]} 47... Ke6 {[%clk 0:00:08.5]} 48. c5 {[%clk 0:00:04.9]} 48... Kd7
{[%clk 0:00:07.1]} 49. b6 {[%clk 0:00:05.1]} 49... cxb6 {[%clk 0:00:06.4]} 50.
cxb6 {[%clk 0:00:06]} 50... Rxa6 {[%clk 0:00:07]} 51. Bxa6 {[%clk 0:00:06.2]}
51... Kc6 {[%clk 0:00:07.6]} 52. Bd3 {[%clk 0:00:06.8]} 52... Kxb6 {[%clk
0:00:07.8]} 53. Ke3 {[%clk 0:00:07.7]} 53... h4 {[%clk 0:00:07.7]} 54. Ke4
{[%clk 0:00:08.1]} 54... Kc5 {[%clk 0:00:08.6]} 55. Kxe5 {[%clk 0:00:09]} 1-0

[Event "Early-Titled-Tuesday-Blitz-March-19-2024"]
[Site "Chess.com"]
[Date "2024.03.19"]
[Round "9"]
[White "OparinGrigoriy"]
[Black "Sina_Movahed"]
[Result "0-1"]
[WhiteElo "2990"]
[BlackElo "3095"]
[TimeControl "180+1"]
[EndTime "9:45:55 PDT"]
[Termination "Sina_Movahed won by resignation"]

1. d4 {[%clk 0:03:00.9]} 1... Nf6 {[%clk 0:02:59.9]} 2. c4 {[%clk 0:03:01.4]}
2... g6 {[%clk 0:03:00.6]} 3. Nf3 {[%clk 0:02:59.6]} 3... Bg7 {[%clk 0:03:01.5]}
4. g3 {[%clk 0:03:00.3]} 4... O-O {[%clk 0:03:02.1]} 5. Bg2 {[%clk 0:03:01]}
5... d6 {[%clk 0:03:03]} 6. O-O {[%clk 0:03:01.4]} 6... Nbd7 {[%clk 0:03:03.4]}
7. Nc3 {[%clk 0:03:01.6]} 7... e5 {[%clk 0:03:04.3]} 8. e4 {[%clk 0:03:02.3]}
8... exd4 {[%clk 0:03:04.5]} 9. Nxd4 {[%clk 0:03:03.2]} 9... Nc5 {[%clk
0:03:05.3]} 10. Qc2 {[%clk 0:03:03.4]} 10... Re8 {[%clk 0:02:55.7]} 11. Rd1
{[%clk 0:03:03.6]} 11... Bg4 {[%clk 0:02:52.6]} 12. f3 {[%clk 0:03:03.1]} 12...
Bd7 {[%clk 0:02:52.6]} 13. Be3 {[%clk 0:03:01.2]} 13... Ne6 {[%clk 0:02:49.4]}
14. Rd2 {[%clk 0:02:57.9]} 14... h5 {[%clk 0:02:47]} 15. Rad1 {[%clk 0:02:55.7]}
15... h4 {[%clk 0:02:46.7]} 16. g4 {[%clk 0:02:51.3]} 16... Qe7 {[%clk
0:02:37.6]} 17. Ndb5 {[%clk 0:02:41.6]} 17... Bxb5 {[%clk 0:02:35.2]} 18. cxb5
{[%clk 0:02:38.7]} 18... Kh7 {[%clk 0:02:13.1]} 19. g5 {[%clk 0:02:26.3]} 19...
Nh5 {[%clk 0:02:12.5]} 20. Nd5 {[%clk 0:02:26.8]} 20... Qd8 {[%clk 0:02:00.5]}
21. f4 {[%clk 0:02:26.8]} 21... Rc8 {[%clk 0:01:59]} 22. Rf2 {[%clk 0:02:09.6]}
22... c6 {[%clk 0:01:55.9]} 23. bxc6 {[%clk 0:02:10.5]} 23... bxc6 {[%clk
0:01:54.9]} 24. Nc3 {[%clk 0:02:10.5]} 24... Rb8 {[%clk 0:01:21.4]} 25. Qd2
{[%clk 0:02:06.6]} 25... c5 {[%clk 0:00:47.5]} 26. f5 {[%clk 0:02:04]} 26... Nd4
{[%clk 0:00:47.2]} 27. f6 {[%clk 0:02:01.5]} 27... Bf8 {[%clk 0:00:47.5]} 28.
Nd5 {[%clk 0:01:54.5]} 28... Re5 {[%clk 0:00:47.3]} 29. Bxd4 {[%clk 0:01:42.5]}
29... cxd4 {[%clk 0:00:48.2]} 30. Bf3 {[%clk 0:01:43]} 30... Qd7 {[%clk
0:00:44.4]} 31. Kg2 {[%clk 0:01:12.1]} 31... h3+ {[%clk 0:00:41.5]} 32. Kh1
{[%clk 0:01:11.7]} 32... Rbe8 {[%clk 0:00:40.6]} 33. Re1 {[%clk 0:00:38.1]}
33... Qb5 {[%clk 0:00:34]} 34. Bxh5 {[%clk 0:00:15.6]} 34... Qxd5 {[%clk
0:00:31.1]} 35. Bf3 {[%clk 0:00:09.3]} 35... Qc5 {[%clk 0:00:29.4]} 36. Rg1
{[%clk 0:00:09.1]} 36... d5 {[%clk 0:00:27.8]} 37. exd5 {[%clk 0:00:10]} 37...
Re3 {[%clk 0:00:27.5]} 38. Rgf1 {[%clk 0:00:09.8]} 38... Bd6 {[%clk 0:00:22.3]}
39. Qd1 {[%clk 0:00:10]} 39... d3 {[%clk 0:00:20]} 40. Rd2 {[%clk 0:00:09.7]}
40... Qd4 {[%clk 0:00:20.6]} 41. Rdf2 {[%clk 0:00:03.8]} 41... R8e5 {[%clk
0:00:20.3]} 42. Bg4 {[%clk 0:00:02.7]} 42... Qe4+ {[%clk 0:00:18.3]} 43. Bf3
{[%clk 0:00:03]} 43... Qd4 {[%clk 0:00:17.8]} 44. Bg4 {[%clk 0:00:03.6]} 44...
Rxg5 {[%clk 0:00:11.7]} 45. Bf3 {[%clk 0:00:02.1]} 45... Rge5 {[%clk 0:00:08.4]}
46. Qd2 {[%clk 0:00:02.7]} 46... Rf5 {[%clk 0:00:06.4]} 47. Qd1 {[%clk
0:00:02.9]} 47... Rxf6 {[%clk 0:00:06.2]} 48. a3 {[%clk 0:00:02.9]} 48... Rf4
{[%clk 0:00:06.4]} 49. b4 {[%clk 0:00:03.2]} 49... f5 {[%clk 0:00:07]} 50. Qd2
{[%clk 0:00:01.9]} 50... g5 {[%clk 0:00:07.4]} 51. Qd1 {[%clk 0:00:02.2]} 51...
g4 {[%clk 0:00:07.7]} 52. Bxg4 {[%clk 0:00:02.8]} 52... fxg4 {[%clk 0:00:07]}
53. Rxf4 {[%clk 0:00:02.8]} 53... Bxf4 {[%clk 0:00:07.9]} 54. Qxg4 {[%clk
0:00:03]} 54... Qxd5+ {[%clk 0:00:07.9]} 55. Kg1 {[%clk 0:00:03.1]} 55... Qg2+
{[%clk 0:00:07.1]} 56. Qxg2 {[%clk 0:00:03.3]} 56... hxg2 {[%clk 0:00:08]} 57.
Kxg2 {[%clk 0:00:04.2]} 57... d2 {[%clk 0:00:08.5]} 58. Rxf4 {[%clk 0:00:03.3]}
58... d1=Q {[%clk 0:00:08.2]} 0-1

[Event "Early-Titled-Tuesday-Blitz-March-19-2024"]
[Site "Chess.com"]
[Date "2024.03.19"]
[Round "9"]
[White "FairChess_on_YouTube"]
[Black "Anton_Demchenko"]
[Result "1-0"]
[WhiteElo "3141"]
[BlackElo "3019"]
[TimeControl "180+1"]
[EndTime "9:45:58 PDT"]
[Termination "FairChess_on_YouTube won by checkmate"]

1. d4 {[%clk 0:03:00.9]} 1... Nf6 {[%clk 0:02:59.4]} 2. c4 {[%clk 0:03:00.7]}
2... d6 {[%clk 0:02:58.5]} 3. Nf3 {[%clk 0:02:57.5]} 3... Nc6 {[%clk 0:02:57.5]}
4. Nc3 {[%clk 0:02:44.1]} 4... e5 {[%clk 0:02:57.6]} 5. d5 {[%clk 0:02:44.8]}
5... Ne7 {[%clk 0:02:57.4]} 6. e4 {[%clk 0:02:45.4]} 6... Ng6 {[%clk 0:02:58]}
7. g3 {[%clk 0:02:41.7]} 7... Be7 {[%clk 0:02:58.2]} 8. h4 {[%clk 0:02:40.8]}
8... h6 {[%clk 0:02:58.2]} 9. Be2 {[%clk 0:02:35.9]} 9... c6 {[%clk 0:02:57.4]}
10. h5 {[%clk 0:02:31]} 10... Nf8 {[%clk 0:02:57]} 11. Nh4 {[%clk 0:02:24.5]}
11... N8h7 {[%clk 0:02:53.1]} 12. Be3 {[%clk 0:02:22.3]} 12... O-O {[%clk
0:02:49.5]} 13. Qd2 {[%clk 0:02:18.2]} 13... cxd5 {[%clk 0:02:47.2]} 14. cxd5
{[%clk 0:02:11.2]} 14... Ng4 {[%clk 0:02:43.5]} 15. Bxg4 {[%clk 0:02:06.7]}
15... Bxg4 {[%clk 0:02:44.4]} 16. Nf5 {[%clk 0:02:01.7]} 16... Nf6 {[%clk
0:02:12.7]} 17. Nxe7+ {[%clk 0:01:17.2]} 17... Qxe7 {[%clk 0:02:12.6]} 18. Rh4
{[%clk 0:01:17.8]} 18... Qd7 {[%clk 0:01:35.6]} 19. Qd3 {[%clk 0:00:37.5]} 19...
a6 {[%clk 0:01:21.1]} 20. Kf1 {[%clk 0:00:31.4]} 20... Nxh5 {[%clk 0:00:50.1]}
21. Kg2 {[%clk 0:00:31.7]} 21... f5 {[%clk 0:00:50.6]} 22. exf5 {[%clk 0:00:29]}
22... Nf6 {[%clk 0:00:41.9]} 23. Rah1 {[%clk 0:00:18.8]} 23... Qxf5 {[%clk
0:00:41.6]} 24. Qxf5 {[%clk 0:00:17.3]} 24... Bxf5 {[%clk 0:00:42.5]} 25. f3
{[%clk 0:00:17.4]} 25... Bg6 {[%clk 0:00:33.1]} 26. g4 {[%clk 0:00:16.5]} 26...
b5 {[%clk 0:00:24.9]} 27. g5 {[%clk 0:00:16.1]} 27... hxg5 {[%clk 0:00:25.5]}
28. Bxg5 {[%clk 0:00:16.9]} 28... Rac8 {[%clk 0:00:24.9]} 29. a3 {[%clk
0:00:16.8]} 29... Rc4 {[%clk 0:00:23.8]} 30. Rxc4 {[%clk 0:00:15.9]} 30... bxc4
{[%clk 0:00:23.8]} 31. Rh4 {[%clk 0:00:12.3]} 31... Bd3 {[%clk 0:00:24.1]} 32.
Bxf6 {[%clk 0:00:11.4]} 32... gxf6 {[%clk 0:00:20.1]} 33. Kg3 {[%clk 0:00:11.9]}
33... f5 {[%clk 0:00:19.6]} 34. f4 {[%clk 0:00:11.4]} 34... Kg7 {[%clk
0:00:16.5]} 35. Kf3 {[%clk 0:00:08.7]} 35... Rb8 {[%clk 0:00:14.7]} 36. Rh2
{[%clk 0:00:08.7]} 36... Kg6 {[%clk 0:00:13.9]} 37. Ke3 {[%clk 0:00:07.3]} 37...
Re8 {[%clk 0:00:10.4]} 38. Rg2+ {[%clk 0:00:07.3]} 38... Kf6 {[%clk 0:00:10.6]}
39. Rh2 {[%clk 0:00:07.9]} 39... Kg6 {[%clk 0:00:09.2]} 40. Rg2+ {[%clk
0:00:08.2]} 40... Kf7 {[%clk 0:00:09.7]} 41. Rh2 {[%clk 0:00:07.8]} 41... Rb8
{[%clk 0:00:07.4]} 42. Rh6 {[%clk 0:00:04.9]} 42... Rxb2 {[%clk 0:00:06.2]} 43.
Rxd6 {[%clk 0:00:05.5]} 43... Rb3 {[%clk 0:00:06.5]} 44. fxe5 {[%clk 0:00:03.2]}
44... Rxc3 {[%clk 0:00:06.9]} 45. Kd4 {[%clk 0:00:03.5]} 45... Rxa3 {[%clk
0:00:04.4]} 46. Rd7+ {[%clk 0:00:03.8]} 46... Ke8 {[%clk 0:00:04.5]} 47. e6
{[%clk 0:00:04.5]} 47... Ra1 {[%clk 0:00:02]} 48. Ke5 {[%clk 0:00:03.1]} 48...
Re1+ {[%clk 0:00:02.4]} 49. Kf6 {[%clk 0:00:03.6]} 49... f4 {[%clk 0:00:01.7]}
50. Rc7 {[%clk 0:00:02.8]} 50... Kd8 {[%clk 0:00:02]} 51. d6 {[%clk 0:00:03.4]}
51... f3 {[%clk 0:00:01.5]} 52. e7+ {[%clk 0:00:04.3]} 52... Rxe7 {[%clk
0:00:01.7]} 53. dxe7+ {[%clk 0:00:04]} 53... Ke8 {[%clk 0:00:02.3]} 54. Rc8+
{[%clk 0:00:04.1]} 54... Kd7 {[%clk 0:00:03]} 55. e8=Q+ {[%clk 0:00:05]} 55...
Kd6 {[%clk 0:00:03.8]} 56. Qe7+ {[%clk 0:00:05.7]} 56... Kd5 {[%clk 0:00:04.7]}
57. Qe5# {[%clk 0:00:06.3]} 1-0